bitfinex/quotes_BTCUSD_20240927
["timestamp","ask_amount","ask_price","bid_price","bid_amount"]
[1727462035640,0.304002,65789.0,65786.0,0.18640745]
[1727462035860,0.152005,65787.0,65786.0,0.18640745]
[1727462037267,0.152005,65787.0,65786.0,0.18240745]
[1727462037485,0.152005,65787.0,65786.0,0.18440745]
[1727462037957,0.152005,65787.0,65786.0,0.18240745]
[1727462038434,0.152005,65787.0,65786.0,0.19346214]
[1727462038619,0.152005,65787.0,65786.0,0.01705469]
[1727462038876,0.154005,65787.0,65786.0,0.01705469]
[1727462039111,0.15387228,65787.0,65786.0,0.01]
[1727462039604,0.15187228,65787.0,65786.0,0.01]
[1727462040541,0.34426127,65787.0,65786.0,0.01]
[1727462040770,0.42616127,65787.0,65786.0,0.01]
[1727462041000,0.34997324,65787.0,65786.0,0.01]
[1727462041245,0.34997324,65787.0,65786.0,0.004]
[1727462041476,0.35386997,65787.0,65786.0,0.004]
[1727462041718,0.45586997,65787.0,65786.0,0.004]
[1727462042184,0.152014,65783.0,65782.0,0.000827]
[1727462042413,0.4450771,65783.0,65782.0,0.000827]
[1727462044838,0.4520771,65783.0,65782.0,0.001827]
[1727462045452,0.45289411,65783.0,65782.0,0.002827]
[1727462045621,0.59828326,65783.0,65782.0,0.002827]
[1727462045832,0.45289411,65783.0,65782.0,0.002827]
[1727462049161,0.47673109,65783.0,65782.0,0.002827]
[1727462049620,0.49973109,65783.0,65782.0,0.002827]
[1727462051864,0.17869411,65783.0,65782.0,0.002827]
[1727462052723,0.18069411,65783.0,65782.0,0.002827]
[1727462053356,0.17369411,65783.0,65782.0,0.001827]
[1727462053781,0.17269411,65783.0,65782.0,0.000827]
[1727462054209,0.17369411,65783.0,65782.0,0.001827]
[1727462054751,0.17869411,65783.0,65782.0,0.001827]
[1727462054955,0.17269411,65783.0,65782.0,0.000827]
[1727462055164,0.17269411,65783.0,65782.0,0.001827]
[1727462056871,0.17269411,65783.0,65782.0,0.000827]
[1727462057328,0.17369411,65783.0,65782.0,0.000827]
[1727462057781,0.17269411,65783.0,65782.0,0.001827]
[1727462058001,0.17269411,65783.0,65782.0,0.000827]
[1727462058230,0.17269411,65783.0,65782.0,0.002827]
[1727462058456,0.17269411,65783.0,65782.0,0.006827]
[1727462058923,0.17269411,65783.0,65782.0,0.008827]
[1727462059621,0.17069411,65783.0,65782.0,0.008827]
[1727462060080,0.17069411,65783.0,65782.0,0.0086007]
[1727462060784,0.17069411,65783.0,65782.0,0.0146007]
[1727462061213,0.17069411,65783.0,65782.0,0.0126007]
[1727462061443,0.17269411,65783.0,65782.0,0.0086007]
[1727462061673,0.17069411,65783.0,65782.0,0.0106007]
[1727462061893,0.17169411,65783.0,65782.0,0.0166007]
[1727462062142,0.17169411,65783.0,65782.0,0.0146007]
[1727462062356,0.17169411,65783.0,65782.0,0.0186007]
[1727462063512,0.17369411,65783.0,65782.0,0.0186007]
[1727462064840,0.17169411,65783.0,65782.0,0.0186007]
[1727462067599,0.17369411,65783.0,65782.0,0.0186007]
[1727462067807,0.17169411,65783.0,65782.0,0.0186007]
[1727462068398,0.17334811,65783.0,65782.0,0.0186007]
[1727462068644,0.17534811,65783.0,65782.0,0.0186007]
[1727462069288,0.17534811,65783.0,65782.0,0.010827]
[1727462069716,0.17534811,65783.0,65782.0,0.01894315]
[1727462072278,0.17334811,65783.0,65782.0,0.01894315]
[1727462075010,0.002654,65783.0,65782.0,0.1953506]
[1727462075452,0.002654,65783.0,65782.0,0.3473676]
[1727462075673,0.002654,65783.0,65782.0,0.1953506]
[1727462077088,0.002654,65783.0,65782.0,0.3473676]
[1727462077283,0.002654,65783.0,65782.0,0.4402676]
[1727462078650,0.002654,65783.0,65782.0,0.2882506]
[1727462078881,0.002654,65783.0,65782.0,0.4402676]
[1727462079282,0.002654,65783.0,65782.0,0.2882506]
[1727462079737,0.154668,65783.0,65782.0,0.2882506]
[1727462079960,0.002654,65783.0,65782.0,0.2882506]
[1727462080469,0.002654,65783.0,65782.0,0.29129061]
[1727462080677,0.002654,65783.0,65782.0,0.4402676]
[1727462081110,0.002654,65783.0,65782.0,0.5226676]
[1727462084326,0.002654,65783.0,65782.0,0.52298012]
[1727462089848,0.002654,65783.0,65782.0,0.68326806]
[1727462090109,0.002654,65783.0,65782.0,0.69326806]
[1727462090582,0.001654,65783.0,65782.0,0.73275559]
[1727462090824,0.001654,65783.0,65782.0,0.72875559]
[1727462091057,0.002654,65783.0,65782.0,0.69626806]
[1727462091505,0.001654,65787.0,65786.0,0.44341545]
[1727462091750,0.001654,65787.0,65786.0,0.77641851]
[1727462092196,0.001654,65787.0,65786.0,0.84463296]
[1727462092416,0.001654,65787.0,65786.0,0.84461986]
[1727462092628,0.001654,65787.0,65786.0,0.77641851]
[1727462093066,0.001654,65787.0,65786.0,0.81341851]
[1727462093747,0.001654,65787.0,65786.0,0.85887989]
[1727462094216,0.001654,65787.0,65786.0,0.87287989]
[1727462094432,0.001654,65787.0,65786.0,0.89561986]
[1727462095560,0.001654,65787.0,65786.0,0.89560425]
[1727462096043,0.001654,65787.0,65786.0,0.82741851]
[1727462096274,0.001654,65787.0,65786.0,0.89560425]
[1727462096492,0.001654,65787.0,65786.0,1.79873057]
[1727462096723,0.001654,65787.0,65786.0,1.62403057]
[1727462097176,0.001654,65787.0,65786.0,1.47202257]
[1727462097412,0.001654,65787.0,65786.0,1.61003057]
[1727462097633,0.001654,65787.0,65786.0,1.45802257]
[1727462097862,0.001654,65787.0,65786.0,1.62403057]
[1727462098332,0.001654,65787.0,65786.0,1.47202257]
[1727462098562,0.001654,65787.0,65786.0,1.61003057]
[1727462098787,0.001654,65787.0,65786.0,1.47202257]
[1727462099228,0.001654,65787.0,65786.0,1.45833505]
[1727462099509,0.001654,65787.0,65786.0,1.46933505]
[1727462099949,0.001654,65787.0,65786.0,1.47133505]
[1727462100398,0.001654,65787.0,65786.0,1.63434305]
[1727462100617,0.153659,65787.0,65786.0,1.3059276]
[1727462101298,0.001654,65787.0,65786.0,1.48233505]
[1727462101536,0.153659,65787.0,65786.0,1.48233505]
[1727462101803,0.001654,65787.0,65786.0,1.48233505]
[1727462102003,0.153659,65787.0,65786.0,1.48233505]
[1727462102229,0.153659,65787.0,65786.0,0.22273505]
[1727462103871,0.001654,65787.0,65786.0,0.22273505]
[1727462104130,0.153659,65787.0,65786.0,0.22273505]
[1727462104811,0.153659,65787.0,65786.0,0.0463276]
[1727462105048,0.155659,65787.0,65786.0,0.0463276]
[1727462106018,0.153659,65787.0,65786.0,0.0463276]
[1727462106712,0.155659,65787.0,65786.0,0.0463276]
[1727462107217,0.153659,65787.0,65786.0,0.0463276]
[1727462107463,0.17205996,65787.0,65786.0,0.0463276]
[1727462107712,0.25025996,65787.0,65786.0,0.0463276]
[1727462107931,0.25025996,65787.0,65786.0,0.03831248]
[1727462108162,0.25025996,65787.0,65786.0,0.01131248]
[1727462108405,0.35125996,65787.0,65786.0,0.01131248]
[1727462108635,0.48659526,65787.0,65786.0,0.00031248]
[1727462108874,0.48956168,65787.0,65786.0,0.00031248]
[1727462109091,0.49256168,65787.0,65786.0,0.00031248]
[1727462109558,0.35722638,65787.0,65786.0,0.00031248]
[1727462109785,0.35522638,65787.0,65786.0,0.00031248]
[1727462110215,0.35722638,65787.0,65786.0,0.00131248]
[1727462111351,0.35325996,65787.0,65786.0,0.00131248]
[1727462111576,0.35125996,65787.0,65786.0,0.00031248]
[1727462112058,0.35225996,65787.0,65786.0,0.00031248]
[1727462112511,0.27505996,65787.0,65786.0,0.00031248]
[1727462112747,0.155659,65787.0,65786.0,0.00031248]
[1727462112969,0.156659,65787.0,65786.0,0.00031248]
[1727462113186,0.156659,65787.0,65786.0,0.0083662]
[1727462113444,0.004654,65787.0,65786.0,0.0083662]
[1727462113906,0.156659,65787.0,65786.0,0.0083662]
[1727462114133,0.156659,65787.0,65786.0,0.00031248]
[1727462114358,0.158659,65787.0,65786.0,0.00031248]
[1727462115295,0.156659,65787.0,65786.0,0.00031248]
[1727462115544,0.156659,65787.0,65786.0,0.0113662]
[1727462115764,0.155659,65787.0,65786.0,0.0113662]
[1727462115995,0.155659,65787.0,65786.0,0.0083662]
[1727462116246,0.155659,65787.0,65786.0,0.0133662]
[1727462116718,0.155659,65787.0,65786.0,0.0203662]
[1727462116906,0.155659,65787.0,65786.0,0.0133662]
[1727462117388,0.001654,65787.0,65786.0,0.0213662]
[1727462117615,0.153659,65787.0,65786.0,0.0213662]
[1727462117852,0.153659,65787.0,65786.0,0.0163662]
[1727462118307,0.155659,65787.0,65786.0,0.0223662]
[1727462118503,0.155659,65787.0,65786.0,0.01431248]
[1727462119010,0.155659,65787.0,65786.0,0.02235182]
[1727462119729,0.155659,65787.0,65786.0,0.01431248]
[1727462119973,0.155659,65787.0,65786.0,0.02235182]
[1727462120190,0.153659,65787.0,65786.0,0.02235182]
[1727462120389,0.155659,65787.0,65786.0,0.02235182]
[1727462120656,0.155659,65787.0,65786.0,0.01431248]
[1727462122579,0.155659,65787.0,65786.0,0.00831248]
[1727462122580,0.17405996,65787.0,65786.0,0.00831248]
[1727462122787,0.25065996,65787.0,65786.0,0.01031248]
[1727462123452,0.25065996,65787.0,65786.0,0.00231248]
[1727462123700,0.25065996,65787.0,65786.0,0.00631248]
[1727462124155,0.25065996,65787.0,65786.0,0.00031248]
[1727462124411,0.25065996,65787.0,65786.0,0.00131248]
[1727462124659,0.25065996,65787.0,65786.0,0.00331248]
[1727462125111,0.25065996,65787.0,65786.0,0.00131248]
[1727462125816,0.25065996,65787.0,65786.0,0.00031248]
[1727462126313,0.25565996,65787.0,65786.0,0.00031248]
[1727462127002,0.25965996,65787.0,65786.0,0.00031248]
[1727462127225,0.35627606,65787.0,65786.0,0.00031248]
[1727462127945,0.35812785,65787.0,65786.0,0.00031248]
[1727462128175,0.45812785,65787.0,65786.0,0.00031248]
[1727462128384,0.46012785,65787.0,65786.0,0.00131248]
[1727462128631,0.45312785,65787.0,65786.0,0.00131248]
[1727462128842,0.45312785,65787.0,65786.0,0.00031248]
[1727462128843,0.45112785,65787.0,65786.0,0.00031248]
[1727462129065,0.45112785,65787.0,65786.0,0.00231248]
[1727462129066,0.55112785,65787.0,65786.0,0.00231248]
[1727462129311,0.56712785,65787.0,65786.0,0.00131248]
[1727462129559,0.57312785,65787.0,65786.0,0.00131248]
[1727462130013,0.56712785,65787.0,65786.0,0.00131248]
[1727462130265,0.57512785,65787.0,65786.0,4.8e-07]
[1727462130486,0.371312,65784.0,65783.0,0.000828]
[1727462130735,0.38988626,65784.0,65783.0,0.000828]
[1727462130937,0.46618626,65784.0,65783.0,0.000828]
[1727462131678,0.49002339,65784.0,65783.0,0.000828]
[1727462132560,0.50102339,65784.0,65783.0,0.000828]
[1727462132785,0.66841145,65784.0,65783.0,0.000828]
[1727462133019,0.65741145,65784.0,65783.0,0.000828]
[1727462133241,0.67041145,65784.0,65783.0,0.000828]
[1727462133472,0.65941145,65784.0,65783.0,0.000828]
[1727462133923,0.67341145,65784.0,65783.0,0.000828]
[1727462134147,0.36301139,65784.0,65783.0,0.000828]
[1727462134366,0.51502339,65784.0,65783.0,0.000828]
[1727462134601,0.50202339,65784.0,65783.0,0.000828]
[1727462135052,0.51602339,65784.0,65783.0,0.000828]
[1727462135292,0.50202339,65784.0,65783.0,0.000828]
[1727462135517,0.54694561,65784.0,65783.0,0.000828]
[1727462135764,0.57494561,65784.0,65783.0,0.000828]
[1727462136216,0.55110848,65784.0,65783.0,0.000828]
[1727462137868,0.56701112,65784.0,65783.0,1e-06]
[1727462138105,0.152035,65774.0,65773.0,0.0009806]
[1727462138361,0.45016031,65774.0,65773.0,0.0009806]
[1727462138602,0.45016031,65774.0,65753.0,0.1763]
[1727462138603,0.252038,65773.0,65753.0,0.1763]
[1727462138836,0.27205673,65773.0,65760.0,0.000987]
[1727462139507,0.29589602,65773.0,65760.0,0.000987]
[1727462139710,0.43588572,65773.0,65760.0,0.000987]
[1727462139990,0.44088572,65773.0,65760.0,0.000987]
[1727462140496,0.30089602,65773.0,65760.0,0.000987]
[1727462141267,0.30789602,65773.0,65760.0,0.000987]
[1727462141988,0.31185573,65773.0,65760.0,0.000987]
[1727462142470,0.31185573,65773.0,65763.0,0.0797]
[1727462142695,0.28801644,65773.0,65763.0,0.0797]
[1727462143614,0.28801644,65773.0,65760.0,0.000987]
[1727462145525,0.31185561,65773.0,65760.0,0.000987]
[1727462146447,0.44292127,65773.0,65760.0,0.000987]
[1727462146724,0.44292127,65773.0,65772.0,1e-06]
[1727462146725,0.86787225,65773.0,65772.0,1e-06]
[1727462146974,0.6175821,65773.0,65772.0,1e-06]
[1727462147872,0.6105821,65773.0,65772.0,1e-06]
[1727462148109,0.6245821,65773.0,65772.0,1e-06]
[1727462148509,0.6195821,65773.0,65772.0,1e-06]
[1727462148733,0.6185821,65773.0,65772.0,1e-06]
[1727462148961,0.6325821,65773.0,65772.0,1e-06]
[1727462149433,0.6465821,65773.0,65772.0,1e-06]
[1727462149666,0.6195821,65773.0,65772.0,1e-06]
[1727462150129,0.6335821,65773.0,65772.0,1e-06]
[1727462150397,0.6195821,65773.0,65772.0,1e-06]
[1727462150643,0.6475821,65773.0,65772.0,1e-06]
[1727462151114,0.6335821,65773.0,65772.0,1e-06]
[1727462151338,0.6352381,65773.0,65772.0,1e-06]
[1727462151565,0.6492381,65773.0,65772.0,1e-06]
[1727462153042,0.53407508,65773.0,65772.0,1e-06]
[1727462154199,0.43587508,65773.0,65772.0,1e-06]
[1727462159864,0.41287508,65773.0,65772.0,1e-06]
[1727462160347,0.43671577,65773.0,65772.0,1e-06]
[1727462161091,0.43671577,65773.0,65772.0,1.444619]
[1727462161335,0.58127745,65773.0,65772.0,1.444619]
[1727462161563,0.55743676,65773.0,65772.0,1.444619]
[1727462162293,0.33557508,65773.0,65772.0,1.444619]
[1727462163494,0.30757508,65773.0,65772.0,1.444619]
[1727462163767,0.30757508,65773.0,65772.0,1.540119]
[1727462163768,0.21757508,65773.0,65772.0,1.540119]
[1727462164002,0.17767244,65773.0,65772.0,1.540119]
[1727462164244,0.18867244,65773.0,65772.0,1.540119]
[1727462164715,0.17767244,65773.0,65772.0,1.540119]
[1727462165165,0.18267244,65773.0,65772.0,1.540119]
[1727462165387,0.19167244,65773.0,65772.0,1.540119]
[1727462165611,0.18267244,65773.0,65772.0,1.540119]
[1727462165835,0.18667244,65773.0,65772.0,1.540119]
[1727462169710,0.18271273,65773.0,65772.0,1.540119]
[1727462171264,0.18271273,65773.0,65772.0,1.615419]
[1727462171779,0.010656,65773.0,65772.0,1.767459]
[1727462172715,0.001656,65773.0,65772.0,1.767459]
[1727462172966,0.001656,65773.0,65772.0,1.769459]
[1727462172967,0.002656,65773.0,65772.0,1.769459]
[1727462173641,0.002656,65773.0,65772.0,1.617419]
[1727462174140,0.002656,65773.0,65772.0,1.615419]
[1727462174378,0.003656,65773.0,65772.0,1.617419]
[1727462174821,0.002656,65773.0,65772.0,1.617419]
[1727462175078,0.155694,65773.0,65772.0,1.617419]
[1727462175314,0.154694,65773.0,65772.0,1.617419]
[1727462175566,0.154694,65773.0,65772.0,1.446619]
[1727462175567,0.17471273,65773.0,65772.0,1.446619]
[1727462175827,0.17471273,65773.0,65772.0,1.444619]
[1727462176058,0.17471273,65773.0,65772.0,1.448619]
[1727462176605,0.17371273,65773.0,65772.0,1.444619]
[1727462176819,0.18171273,65773.0,65772.0,1.444619]
[1727462177480,0.17371273,65773.0,65772.0,1.444619]
[1727462177712,0.26290632,65773.0,65772.0,1.444619]
[1727462177962,0.36290632,65773.0,65772.0,1.444619]
[1727462178675,0.36890632,65773.0,65772.0,1.442619]
[1727462178909,0.39190632,65773.0,65772.0,1.442619]
[1727462179151,0.46860632,65773.0,65772.0,1.442619]
[1727462179379,0.47160632,65773.0,65772.0,1.442619]
[1727462179833,0.45760632,65773.0,65772.0,1.442619]
[1727462180058,0.49244681,65773.0,65772.0,1.442619]
[1727462180279,0.48060632,65773.0,65772.0,1.442619]
[1727462180959,0.30072215,65773.0,65772.0,1.44282763]
[1727462181617,0.20072215,65773.0,65772.0,1.44282763]
[1727462182084,0.19671273,65773.0,65772.0,1.44282763]
[1727462185603,0.19671273,65773.0,65772.0,1.44282763]
[1727462189109,0.19671273,65773.0,65772.0,1.44365563]
[1727462193997,0.29671273,65773.0,65772.0,1.44365563]
[1727462194452,0.31971273,65773.0,65772.0,1.44365563]
[1727462194681,0.32171273,65773.0,65772.0,1.44365563]
[1727462195153,0.32171273,65773.0,65772.0,1.38269963]
[1727462195378,0.32171273,65773.0,65772.0,1.29126463]
[1727462195379,0.39991273,65773.0,65772.0,1.29126463]
[1727462195604,0.51819185,65773.0,65772.0,1.29126463]
[1727462196054,0.51819185,65773.0,65772.0,1.13886963]
[1727462196271,0.50619185,65773.0,65772.0,1.13886963]
[1727462196570,0.52019185,65773.0,65772.0,1.13886963]
[1727462196795,0.58794128,65773.0,65772.0,1.13886963]
[1727462197023,0.58894128,65773.0,65772.0,0.96878882]
[1727462197255,3.59127185,65773.0,65772.0,0.96878882]
[1727462197475,3.13429685,65773.0,65772.0,0.96878882]
[1727462197927,3.12329685,65773.0,65772.0,0.95378882]
[1727462198140,2.40390285,65773.0,65772.0,0.83186082]
[1727462198359,2.40390285,65773.0,65772.0,0.80137882]
[1727462198593,2.48021313,65773.0,65772.0,0.80137882]
[1727462198822,2.49421313,65773.0,65772.0,0.80137882]
[1727462199070,2.49421313,65773.0,65772.0,0.77089682]
[1727462199283,2.41790285,65773.0,65772.0,0.67945082]
[1727462199503,2.49420572,65773.0,65772.0,0.64896882]
[1727462199726,2.48744772,65773.0,65772.0,0.64896882]
[1727462200175,2.47344772,65773.0,65772.0,0.61848682]
[1727462200437,2.49729077,65773.0,65772.0,0.55752282]
[1727462200646,2.48329077,65773.0,65772.0,0.49655882]
[1727462200878,2.49729077,65773.0,65772.0,0.49655882]
[1727462201107,2.48329077,65773.0,65772.0,0.46607682]
[1727462201328,2.46929077,65773.0,65772.0,0.37463082]
[1727462201556,2.3789879,65773.0,65772.0,0.34414882]
[1727462201826,2.3789879,65773.0,65767.0,7.056e-05]
[1727462201827,0.292049,65768.0,65767.0,7.056e-05]
[1727462202045,0.39345669,65768.0,65767.0,5.6e-07]
[1727462202705,0.40935933,65768.0,65767.0,5.6e-07]
[1727462203573,0.42335933,65768.0,65767.0,5.6e-07]
[1727462204734,0.43735933,65768.0,65767.0,5.6e-07]
[1727462204993,0.59374739,65768.0,65767.0,5.6e-07]
[1727462205907,0.68374739,65768.0,65767.0,5.6e-07]
[1727462207692,0.275079,65755.0,65754.0,0.0009805]
[1727462207921,0.29842711,65755.0,65754.0,0.0009805]
[1727462208168,0.29842711,65755.0,65751.0,0.22645098]
[1727462208169,0.254086,65752.0,65751.0,0.22645098]
[1727462208378,0.29935919,65752.0,65751.0,0.22645098]
[1727462208611,0.275088,65751.0,65744.0,0.22645098]
[1727462208861,0.43186493,65751.0,65744.0,0.22645098]
[1727462209312,0.51366493,65751.0,65741.0,0.0009873]
[1727462209777,0.51566493,65751.0,65741.0,0.0009873]
[1727462210011,0.51366493,65751.0,65741.0,0.0009873]
[1727462210463,0.52766493,65751.0,65741.0,0.0009873]
[1727462210994,0.252109,65742.0,65741.0,0.0009873]
[1727462211221,0.27519181,65742.0,65741.0,0.0009873]
[1727462211478,0.25193301,65739.0,65737.0,0.22645098]
[1727462211708,0.27588347,65739.0,65737.0,0.22645098]
[1727462211949,0.27588347,65739.0,65732.0,0.0785]
[1727462211950,0.39473862,65739.0,65732.0,0.0785]
[1727462212641,0.41859041,65739.0,65732.0,0.0785]
[1727462212867,0.39473862,65739.0,65728.0,0.0929935]
[1727462213093,0.49953862,65739.0,65730.0,0.22645098]
[1727462214102,0.50753862,65739.0,65730.0,0.22645098]
[1727462214593,0.49953862,65739.0,65730.0,0.22645098]
[1727462215090,0.51353862,65739.0,65730.0,0.22645098]
[1727462215325,0.49953862,65739.0,65730.0,0.22645098]
[1727462216013,0.51353862,65739.0,65730.0,0.22645098]
[1727462216494,0.49953862,65739.0,65730.0,0.22645098]
[1727462216738,0.52753862,65739.0,65730.0,0.22645098]
[1727462216949,0.51353862,65739.0,65730.0,0.22645098]
[1727462217179,0.52753862,65739.0,65730.0,0.22645098]
[1727462217426,0.51353862,65739.0,65730.0,0.22645098]
[1727462217630,0.52753862,65739.0,65730.0,0.22645098]
[1727462218043,0.54344126,65739.0,65730.0,0.22645098]
[1727462219219,0.46164126,65739.0,65734.0,0.0819]
[1727462219699,0.43864126,65739.0,65734.0,0.0819]
[1727462221290,0.46249287,65739.0,65734.0,0.0819]
[1727462222424,0.68894385,65739.0,65731.0,0.0946]
[1727462222656,0.89954385,65739.0,65728.0,0.0009935]
[1727462222889,0.39884702,65736.0,65728.0,0.0009935]
[1727462223104,0.584405,65731.0,65730.0,0.22645098]
[1727462223326,0.152151,65724.0,65723.0,0.22645098]
[1727462223544,0.252151,65724.0,65723.0,0.22645098]
[1727462223992,0.25216,65720.0,65719.0,0.091]
[1727462224209,0.27830939,65720.0,65719.0,0.091]
[1727462224428,0.33657143,65720.0,65719.0,0.091]
[1727462226026,0.27830939,65720.0,65719.0,0.091]
[1727462226239,0.28330939,65720.0,65719.0,0.091]
[1727462226454,0.28830939,65720.0,65719.0,0.091]
[1727462227643,0.28830939,65720.0,65717.0,0.000828]
[1727462227644,0.252165,65718.0,65717.0,0.000828]
[1727462227871,0.40867317,65718.0,65717.0,0.000828]
[1727462229951,0.43167317,65718.0,65717.0,0.000828]
[1727462230165,0.43467317,65718.0,65717.0,0.000828]
[1727462230620,0.43167317,65718.0,65717.0,0.000828]
[1727462231077,0.44167317,65718.0,65717.0,0.000828]
[1727462231563,0.44667317,65718.0,65717.0,0.000828]
[1727462231842,0.29354593,65718.0,65717.0,0.000828]
[1727462232307,0.28354593,65718.0,65717.0,0.000828]
[1727462232751,0.28954593,65718.0,65717.0,0.000828]
[1727462232976,0.30054593,65718.0,65717.0,0.000828]
[1727462233198,0.28954593,65718.0,65717.0,0.000828]
[1727462233419,0.39918564,65718.0,65717.0,0.000828]
[1727462233636,0.40818564,65718.0,65717.0,0.000828]
[1727462233932,0.41718564,65718.0,65717.0,0.000828]
[1727462237409,0.64363662,65718.0,65717.0,0.000828]
[1727462237620,0.44018564,65718.0,65717.0,0.000828]
[1727462239201,0.43118564,65718.0,65717.0,0.000828]
[1727462239418,0.42218564,65718.0,65717.0,0.000828]
[1727462239648,0.42304509,65718.0,65717.0,0.000828]
[1727462239861,0.31640538,65718.0,65717.0,0.000828]
[1727462240124,0.30654593,65718.0,65717.0,0.178828]
[1727462240603,0.316404,65718.0,65717.0,0.178828]
[1727462241077,0.39871906,65718.0,65717.0,0.178828]
[1727462241562,0.30654593,65718.0,65717.0,0.178828]
[1727462242759,0.33040304,65718.0,65717.0,0.178828]
[1727462242954,0.31640304,65718.0,65717.0,0.178828]
[1727462243195,0.30240304,65718.0,65717.0,0.178828]
[1727462243425,0.28554593,65718.0,65717.0,0.178828]
[1727462243546,0.40737591,65718.0,65717.0,0.178828]
[1727462244450,0.28554593,65718.0,65717.0,0.178828]
[1727462244694,0.18554593,65718.0,65717.0,0.178828]
[1727462245629,0.18154593,65718.0,65717.0,0.178828]
[1727462245865,0.18254593,65718.0,65717.0,0.178828]
[1727462246116,0.17954593,65718.0,65717.0,0.178828]
[1727462246363,0.26175094,65718.0,65717.0,0.178828]
[1727462248048,0.18054593,65718.0,65717.0,0.178828]
[1727462250609,0.002,65718.0,65717.0,0.330995]
[1727462252018,0.02385285,65726.0,65725.0,0.152149]
[1727462252253,0.02385285,65726.0,65725.0,0.45615645]
[1727462252484,0.152135,65731.0,65730.0,0.0753]
[1727462252730,0.17701117,65731.0,65730.0,0.0753]
[1727462253198,0.17701117,65731.0,65730.0,0.0713]
[1727462253877,0.20086213,65731.0,65730.0,0.0713]
[1727462255247,0.20086213,65731.0,65726.0,0.0523]
[1727462255248,0.152144,65727.0,65726.0,0.0523]
[1727462255448,0.17748311,65727.0,65726.0,0.0523]
[1727462256447,0.17748311,65727.0,65726.0,0.1347]
[1727462256660,0.17748311,65727.0,65726.0,0.1387]
[1727462256870,0.02533911,65727.0,65726.0,0.1347]
[1727462257322,0.17748311,65727.0,65726.0,0.1417]
[1727462257770,0.17748311,65727.0,65726.0,0.007]
[1727462258608,0.17748311,65727.0,65726.0,0.004]
[1727462259284,0.304299,65725.0,65718.0,0.0824]
[1727462259527,0.152162,65719.0,65718.0,0.0824]
[1727462259766,0.02591785,65724.0,65718.0,0.0824]
[1727462260021,0.02591785,65724.0,65721.0,0.32856345]
[1727462260263,0.17806985,65724.0,65721.0,0.32856345]
[1727462260503,0.02591785,65724.0,65721.0,0.17640745]
[1727462261017,0.152156,65722.0,65721.0,0.17640745]
[1727462261511,0.02591785,65724.0,65721.0,0.17640745]
[1727462261733,0.152155,65723.0,65719.0,0.152161]
[1727462261956,0.152158,65721.0,65718.0,0.0824]
[1727462262178,0.152158,65721.0,65718.0,0.0844]
[1727462262367,0.152157,65722.0,65718.0,0.236564]
[1727462262632,0.152157,65722.0,65721.0,0.004]
[1727462263076,0.02697573,65723.0,65721.0,0.004]
[1727462263297,0.152156,65722.0,65721.0,0.004]
[1727462263554,0.02697573,65723.0,65721.0,0.004]
[1727462263555,0.02597573,65723.0,65721.0,0.004]
[1727462263783,0.153156,65722.0,65721.0,0.004]
[1727462264003,0.153156,65722.0,65719.0,0.152162]
[1727462264226,0.153156,65722.0,65721.0,0.004]
[1727462264671,0.001,65722.0,65721.0,0.004]
[1727462264861,0.001,65722.0,65721.0,0.27960745]
[1727462265594,0.001,65722.0,65721.0,0.42776545]
[1727462265820,0.002,65722.0,65721.0,0.51066545]
[1727462266090,0.002,65722.0,65721.0,0.334258]
[1727462266091,0.001,65722.0,65721.0,0.334258]
[1727462266540,0.003,65722.0,65721.0,0.345258]
[1727462266759,0.003,65722.0,65721.0,0.52166545]
[1727462274835,0.004656,65722.0,65721.0,0.52166545]
[1727462275754,0.004656,65722.0,65721.0,0.52366545]
[1727462275983,0.001656,65735.0,65721.0,0.52366545]
[1727462275984,0.22810698,65735.0,65734.0,0.232528]
[1727462276210,0.22810698,65735.0,65734.0,0.50293545]
[1727462276452,0.001656,65735.0,65734.0,0.50293545]
[1727462277416,0.001656,65735.0,65734.0,0.50793545]
[1727462278366,0.001656,65735.0,65734.0,0.51193545]
[1727462278845,0.001656,65735.0,65734.0,0.50793545]
[1727462279091,0.002656,65735.0,65734.0,0.52193545]
[1727462279331,0.002656,65735.0,65734.0,0.52693545]
[1727462279565,0.002656,65735.0,65734.0,0.52193545]
[1727462280022,0.002656,65735.0,65734.0,0.53593545]
[1727462280275,0.001656,65735.0,65734.0,0.52193545]
[1727462280501,0.002656,65735.0,65734.0,0.53793545]
[1727462280726,0.002656,65735.0,65734.0,0.53593545]
[1727462281900,0.002656,65735.0,65734.0,0.53093545]
[1727462282594,0.002656,65735.0,65734.0,0.53293545]
[1727462282842,0.002656,65735.0,65734.0,0.53793545]
[1727462283285,0.002656,65735.0,65734.0,0.53593545]
[1727462283504,0.002656,65735.0,65734.0,0.53093545]
[1727462288209,0.002656,65735.0,65734.0,0.51693545]
[1727462288911,0.002656,65735.0,65734.0,0.51493545]
[1727462289382,0.002656,65735.0,65734.0,0.34053545]
[1727462292080,0.152143,65728.0,65726.0,0.22645098]
[1727462292305,0.02487617,65734.0,65721.0,0.17822285]
[1727462292306,0.15214,65729.0,65721.0,0.17822285]
[1727462292517,0.304284,65728.0,65721.0,0.48253785]
[1727462292733,0.152147,65726.0,65721.0,0.48253785]
[1727462292948,0.304271,65731.0,65722.0,0.30431]
[1727462293220,0.304271,65731.0,65727.0,0.152144]
[1727462293221,0.001,65728.0,65727.0,0.152144]
[1727462293434,0.53072898,65730.0,65725.0,0.17640745]
[1727462293659,0.152142,65728.0,65725.0,0.17640745]
[1727462293883,0.02533911,65731.0,65725.0,0.17640745]
[1727462294332,0.02533911,65731.0,65725.0,0.32855445]
[1727462294333,0.152141,65729.0,65725.0,0.32855445]
[1727462294558,0.02533911,65731.0,65725.0,0.17640745]
[1727462295039,0.02533911,65731.0,65729.0,0.17640745]
[1727462295264,0.02533911,65731.0,65729.0,0.32854645]
[1727462295476,0.02533911,65731.0,65729.0,0.17640745]
[1727462295477,0.17747411,65731.0,65729.0,0.17640745]
[1727462295710,0.02533911,65731.0,65729.0,0.17640745]
[1727462295918,0.02533911,65731.0,65729.0,0.32854645]
[1727462296147,0.152137,65730.0,65729.0,0.17640745]
[1727462296628,0.152137,65730.0,65721.0,0.000828]
[1727462296629,0.152156,65722.0,65721.0,0.000828]
[1727462297969,0.152153,65724.0,65721.0,0.000828]
[1727462298232,0.0772,65725.0,65721.0,0.000828]
[1727462298233,0.152156,65722.0,65721.0,0.000828]
[1727462298451,0.0772,65725.0,65721.0,0.000828]
[1727462298694,0.152156,65722.0,65721.0,0.000828]